[Event "XXIX Cracovia 2018"]
[Site "Krakow"]
[Date "2019.01.02"]
[Round "7"]
[White "Miroshnichenko, Pavel"]
[Black "Lewtak, Damian"]
[Result "1/2-1/2"]
[ECO "A05"]
[WhiteElo "2275"]
[BlackElo "2393"]
[Annotator "NA"]
[PlyCount "43"]
[EventDate "2018.12.27"]
[EventType "swiss"]
[EventCountry "POL"]
[SourceTitle "playchess.com"]
[Source "ChessBase"]
[SourceQuality "1"]
[TimeControl "40/5400+30:1800+30"]

1. Nf3 {[%emt 0:00:38]} Nf6 {[%emt 0:00:00]} 2. c4 {[%emt 0:00:06]} e6 {[%emt 0:00:00]} 3. Nc3 {[%emt 0:00:31]} d5 {[%emt 0:00:00]} 4. e3 {[%emt 0:00:12]} Be7 {[%emt 0:01:51]} 5. b3 {[%emt 0:00:33]} b6 {[%emt 0:00:52]} 6. Bb2 {[%emt 0:00:48]} O-O {[%emt 0:00:33]} 7. Qc2 {[%emt 0:02:23]} Bb7 {[%emt 0:01:00]} 8. Be2 {[%emt 0:02:21]} c5 {[%emt 0:00:30]} 9. cxd5 {[%emt 0:02:01]} Nxd5 {[%emt 0:01:10]} 10. Nxd5 {[%emt 0:03:03]} Qxd5 {[%emt 0:00:49]} 11. h4 {[%emt 0:10:01]} Rd8 {[%emt 0:03:16]} 12. Ng5 {[%emt 0:03:48]} Qf5 {[%emt 0:00:07]} 13. Qxf5 {[%emt 0:12:49]} exf5 {[%emt 0:00:05]} 14. Bf3 {[%emt 0:01:24]} Nc6 {[%emt 0:01:18]} 15. g3 {[%emt 0:03:19]} Rac8 {[%emt 0:00:59]} 16. Bc3 {[%emt 0:05:24]} Ba6 {[%emt 0:02:46]} 17. Be2 {[%emt 0:00:38]} Bb7 {[%emt 0:04:16]} 18. O-O {[%emt 0:04:40]} Bf6 {[%emt 0:02:30]} 19. Rfd1 {[%emt 0:05:20]} Bxc3 {[%emt 0:25:10]} 20. dxc3 {[%emt 0:00:09]} Rxd1+ {[%emt 0:01:01]} 21. Rxd1 {[%emt 0:00:20]} Rd8 {[%emt 0:00:06]} 22. Rxd8+ {[%emt 0:02:39]} 1/2-1/2

[Event "XXIX Cracovia 2018"]
[Site "Krakow"]
[Date "2019.01.02"]
[Round "7"]
[White "Piotrowski, Przemyslaw"]
[Black "Lewicki, Miroslaw"]
[Result "0-1"]
[ECO "A46"]
[WhiteElo "2269"]
[BlackElo "2347"]
[Annotator "NA"]
[PlyCount "56"]
[EventDate "2018.12.27"]
[EventType "swiss"]
[EventCountry "POL"]
[SourceTitle "playchess.com"]
[Source "ChessBase"]
[SourceQuality "1"]
[TimeControl "40/5400+30:1800+30"]

1. d4 {[%emt 0:00:00]} Nf6 {[%emt 0:06:33]} 2. Nf3 {[%emt 0:00:00]} e6 {[%emt 0:00:07]} 3. g3 {[%emt 0:00:00]} b6 {[%emt 0:00:09]} 4. Bg2 {[%emt 0:00:00]} Bb7 {[%emt 0:00:08]} 5. O-O {[%emt 0:00:00]} Be7 {[%emt 0:00:10]} 6. c4 {[%emt 0:00:01]} d5 {[%emt 0:00:06]} 7. cxd5 {[%emt 0:04:04]} exd5 {[%emt 0:00:09]} 8. Nc3 {[%emt 0:00:05]} O-O {[%emt 0:00:06]} 9. Bf4 {[%emt 0:02:43]} Nbd7 {[%emt 0:03:13]} 10. Rc1 {[%emt 0:11:11]} c5 {[%emt 0:03:36]} 11. dxc5 {[%emt 0:11:16]} Nxc5 {[%emt 0:00:19]} 12. Nd4 {[%emt 0:02:35]} Qd7 {[%emt 0:01:37]} 13. b4 {[%emt 0:14:06]} Ne6 {[%emt 0:01:52]} 14. Nxe6 {[%emt 0:00:10]} Qxe6 {[%emt 0:03:35]} 15. Nb5 {[%emt 0:06:42]} Rac8 {[%emt 0:00:39]} 16. Nd4 {[%emt 0:04:28]} Qd7 {[%emt 0:00:14]} 17. Qb3 {[%emt 0:07:28]} b5 {[%emt 0:00:50]} 18. Nf3 {[%emt 0:06:10]} Bd6 {[%emt 0:03:51]} 19. Ne5 {[%emt 0:00:25]} Qe7 {[%emt 0:01:05]} 20. Nd3 {[%emt 0:00:29]} Bxf4 {[%emt 0:00:14]} 21. Nxf4 {[%emt 0:00:17]} Rc4 {[%emt 0:00:13]} 22. a3 {[%emt 0:04:04]} g5 {[%emt 0:01:46]} 23. Nd3 {[%emt 0:03:04]} Qxe2 {[%emt 0:00:10]} 24. Rce1 {[%emt 0:04:34]} Qd2 {[%emt 0:01:20]} 25. Nc5 {[%emt 0:01:23]} Bc8 {[%emt 0:02:53]} 26. Re5 {[%emt 0:03:08]} h6 {[%emt 0:02:08]} 27. Rd1 {[%emt 0:01:29]} Rc1 {[%emt 0:00:07]} 28. Rf1 {[%emt 0:03:30]} Ng4 {[%emt 0:00:08]} 0-1

[Event "XXIX Cracovia 2018"]
[Site "Krakow"]
[Date "2019.01.02"]
[Round "7"]
[White "Chylewski, Patryk"]
[Black "Szpar, Milosz"]
[Result "1-0"]
[ECO "E46"]
[WhiteElo "2268"]
[BlackElo "2339"]
[Annotator "NA"]
[PlyCount "103"]
[EventDate "2018.12.27"]
[EventType "swiss"]
[EventCountry "POL"]
[SourceTitle "playchess.com"]
[Source "ChessBase"]
[SourceQuality "1"]
[TimeControl "40/5400+30:1800+30"]

1. d4 {[%emt 0:00:00]} Nf6 {[%emt 0:00:00]} 2. c4 {[%emt 0:00:00]} e6 {[%emt 0:00:00]} 3. Nc3 {[%emt 0:00:00]} Bb4 {[%emt 0:00:00]} 4. e3 {[%emt 0:00:06]} O-O {[%emt 0:00:09]} 5. Bd2 {[%emt 0:00:05]} d5 {[%emt 0:04:11]} 6. Nf3 {[%emt 0:00:12]} b6 {[%emt 0:05:43]} 7. cxd5 {[%emt 0:00:06]} exd5 {[%emt 0:00:59]} 8. Rc1 {[%emt 0:00:05]} c5 {[%emt 0:07:31]} 9. a3 {[%emt 0:04:43]} Bxc3 {[%emt 0:00:16]} 10. Bxc3 {[%emt 0:00:05]} c4 {[%emt 0:00:10]} 11. Be2 {[%emt 0:02:16]} Nc6 {[%emt 0:04:05]} 12. Ne5 {[%emt 0:07:23]} Bb7 {[%emt 0:02:17]} 13. O-O {[%emt 0:13:36]} Re8 {[%emt 0:04:20]} 14. Bf3 {[%emt 0:18:02]} b5 {[%emt 0:12:54]} 15. b4 {[%emt 0:09:34]} Qd6 {[%emt 0:01:52]} 16. Qd2 {[%emt 0:02:50]} Ne7 {[%emt 0:05:58]} 17. Ng4 {[%emt 0:08:14]} Ne4 {[%emt 0:03:06]} 18. Qc2 {[%emt 0:02:30]} h5 {[%emt 0:04:04]} 19. Ne5 {[%emt 0:00:55]} g6 {[%emt 0:09:44]} 20. Be2 {[%emt 0:01:43]} a5 {[%emt 0:04:51]} 21. Rb1 {[%emt 0:01:53]} f6 {[%emt 0:02:15]} 22. Nf3 {[%emt 0:08:46]} Nc6 {[%emt 0:01:46]} 23. Rb2 {[%emt 0:09:45]} axb4 {[%emt 0:02:47]} 24. Bxb4 {[%emt 0:00:08]} Nxb4 {[%emt 0:00:25]} 25. axb4 {[%emt 0:00:50]} Ra3 {[%emt 0:03:29]} 26. Nd2 {[%emt 0:03:22]} f5 {[%emt 0:01:35]} 27. Nb1 {[%emt 0:01:57]} Ra4 {[%emt 0:02:08]} 28. f3 {[%emt 0:00:19]} Nf6 {[%emt 0:01:25]} 29. Qd2 {[%emt 0:00:22]} Bc6 {[%emt 0:00:33]} 30. Bd1 {[%emt 0:00:21]} Ra7 {[%emt 0:00:28]} 31. Bc2 {[%emt 0:01:47]} Rae7 {[%emt 0:01:03]} 32. Re1 {[%emt 0:00:06]} Re6 {[%emt 0:02:40]} 33. Nc3 {[%emt 0:00:32]} Kf7 {[%emt 0:02:46]} 34. Nd1 {[%emt 0:02:22]} f4 {[%emt 0:01:43]} 35. Bb1 {[%emt 0:00:57]} fxe3 {[%emt 0:00:26]} 36. Rxe3 {[%emt 0:00:26]} Rxe3 {[%emt 0:02:40]} 37. Nxe3 {[%emt 0:00:03]} Qf4 {[%emt 0:00:45]} 38. Nxc4 {[%emt 0:01:07]} Re1+ {[%emt 0:04:42]} 39. Qxe1 {[%emt 0:00:37]} dxc4 {[%emt 0:01:42]} 40. Qd2 {[%emt 0:00:00]} Qxd2 {[%emt 0:00:00]} 41. Rxd2 {[%emt 0:01:09]} Nd5 {[%emt 0:01:23]} 42. Rb2 {[%emt 0:06:05]} Nc3 {[%emt 0:02:51]} 43. Be4 {[%emt 0:06:53]} Bxe4 {[%emt 0:03:47]} 44. fxe4 {[%emt 0:00:05]} Ke6 {[%emt 0:04:07]} 45. e5 {[%emt 0:03:09]} Kd5 {[%emt 0:00:32]} 46. Kf1 {[%emt 0:02:35]} Ne4 {[%emt 0:01:44]} 47. Re2 {[%emt 0:01:08]} Ng5 {[%emt 0:01:41]} 48. e6 {[%emt 0:00:39]} Nxe6 {[%emt 0:00:03]} 49. Re5+ {[%emt 0:00:07]} Kd6 {[%emt 0:00:01]} 50. Rxb5 {[%emt 0:00:12]} c3 {[%emt 0:02:08]} 51. Rb6+ {[%emt 0:00:17]} Kd5 {[%emt 0:00:05]} 52. Rxe6 {[%emt 0:00:06]} 1-0

[Event "XXIX Cracovia 2018"]
[Site "Krakow"]
[Date "2019.01.02"]
[Round "7"]
[White "Gombocz, Ferenc Jr."]
[Black "Heinzel, Olaf"]
[Result "1/2-1/2"]
[ECO "A30"]
[WhiteElo "2263"]
[BlackElo "2326"]
[Annotator "NA"]
[PlyCount "97"]
[EventDate "2018.12.27"]
[EventType "swiss"]
[EventCountry "POL"]
[SourceTitle "playchess.com"]
[Source "ChessBase"]
[SourceQuality "1"]
[TimeControl "40/5400+30:1800+30"]

1. c4 c5 2. g3 Nf6 3. Bg2 d5 4. cxd5 Nxd5 5. Nf3 Nc6 6. d4 cxd4 7. Nxd4 Ndb4 8. Nxc6 Qxd1+ 9. Kxd1 Nxc6 10. Bxc6+ bxc6 11. Nc3 g6 12. Be3 Bg7 13. Kd2 Be6 14. Rhc1 O-O-O+ 15. Ke1 Bd4 16. Bxd4 Rxd4 17. b3 Kb7 18. Na4 Kc7 19. Rc3 Rhd8 20. Rac1 Bd7 21. Nc5 Be8 22. a4 Kb6 23. Nd3 f6 24. b4 R8d6 25. a5+ Kb5 26. Rc5+ Ka6 27. b5+ cxb5 28. Rc8 Bd7 29. Nc5+ Kxa5 30. Nb7+ Ka6 31. Nxd6 Bxc8 32. Nxc8 Rd7 33. Ra1+ Kb7 34. Nxa7 Kb6 35. Nxb5 Kxb5 36. Rc1 Kb6 37. Rc8 Rc7 38. Rf8 f5 39. Kd2 Kc6 40. Ke3 e5 41. f4 Kd6 42. Re8 e4 43. h3 Ra7 44. Kf2 Rf7 45. Re5 Rf8 46. Ra5 Rf7 47. Re5 Rf8 48. Ra5 Rf7 49. Re5 {Kxe5} 1/2-1/2

[Event "XXIX Cracovia 2018"]
[Site "Krakow"]
[Date "2019.01.02"]
[Round "7"]
[White "Kusnetsov, Sergey"]
[Black "Naboka, Sergey"]
[Result "0-1"]
[ECO "A10"]
[WhiteElo "2257"]
[BlackElo "2324"]
[Annotator "NA"]
[PlyCount "78"]
[EventDate "2018.12.27"]
[EventType "swiss"]
[EventCountry "POL"]
[SourceTitle "playchess.com"]
[Source "ChessBase"]
[SourceQuality "1"]
[TimeControl "40/5400+30:1800+30"]

1. c4 {[%emt 0:00:00]} f5 {[%emt 0:00:17]} 2. g3 {[%emt 0:00:00]} Nf6 {[%emt 0:00:06]} 3. Bg2 {[%emt 0:00:02]} d6 {[%emt 0:00:31]} 4. Nc3 {[%emt 0:00:11]} g6 {[%emt 0:00:17]} 5. d3 {[%emt 0:00:23]} Bg7 {[%emt 0:00:21]} 6. e4 {[%emt 0:00:17]} c6 {[%emt 0:01:08]} 7. Nge2 {[%emt 0:00:13]} O-O {[%emt 0:00:40]} 8. O-O {[%emt 0:00:14]} a5 {[%emt 0:09:02]} 9. Bg5 {[%emt 0:02:21]} Na6 {[%emt 0:01:31]} 10. Qd2 {[%emt 0:02:56]} Nc5 {[%emt 0:01:21]} 11. Rad1 {[%emt 0:03:50]} a4 {[%emt 0:04:05]} 12. Bh6 {[%emt 0:15:05]} Bxh6 {[%emt 0:05:54]} 13. Qxh6 {[%emt 0:00:08]} Qb6 {[%emt 0:00:08]} 14. Qc1 {[%emt 0:12:36]} fxe4 {[%emt 0:01:40]} 15. Nxe4 {[%emt 0:03:06]} Nfxe4 {[%emt 0:00:27]} 16. dxe4 {[%emt 0:00:46]} Bg4 {[%emt 0:07:12]} 17. Rd2 {[%emt 0:01:39]} Nd3 {[%emt 0:02:58]} 18. Qc3 {[%emt 0:02:15]} Rxf2 {[%emt 0:03:44]} 19. c5 {[%emt 0:05:58]} Qxc5 {[%emt 0:08:07]} 20. Qxc5 {[%emt 0:05:56]} Rxf1+ {[%emt 0:00:16]} 21. Bxf1 {[%emt 0:00:24]} Nxc5 {[%emt 0:00:07]} 22. Nc3 {[%emt 0:00:16]} b5 {[%emt 0:00:40]} 23. Rd4 {[%emt 0:03:52]} Ne6 {[%emt 0:05:08]} 24. Rb4 {[%emt 0:02:32]} Nc7 {[%emt 0:03:06]} 25. e5 {[%emt 0:01:28]} Be6 {[%emt 0:00:39]} 26. exd6 {[%emt 0:00:29]} exd6 {[%emt 0:00:03]} 27. Re4 {[%emt 0:00:55]} a3 {[%emt 0:04:23]} 28. b3 {[%emt 0:03:49]} d5 {[%emt 0:00:44]} 29. Rh4 {[%emt 0:02:57]} Bf5 {[%emt 0:01:21]} 30. g4 {[%emt 0:03:21]} Bc2 {[%emt 0:00:24]} 31. g5 {[%emt 0:00:18]} Ne6 {[%emt 0:02:12]} 32. Rg4 {[%emt 0:00:49]} d4 {[%emt 0:02:25]} 33. Ne4 {[%emt 0:01:50]} Bxb3 {[%emt 0:00:29]} 34. Rg2 {[%emt 0:01:34]} Bd5 {[%emt 0:01:43]} 35. Nf6+ {[%emt 0:00:41]} Kg7 {[%emt 0:00:08]} 36. Nxd5 {[%emt 0:03:21]} cxd5 {[%emt 0:00:16]} 37. Re2 Nxg5 38. Re7+ {[%emt 0:03:13]} Kf6 {[%emt 0:00:50]} 39. Rb7 {[%emt 0:00:10]} Ne4 {[%emt 0:00:00]} 0-1

[Event "XXIX Cracovia 2018"]
[Site "Krakow"]
[Date "2019.01.02"]
[Round "7"]
[White "Kozak, Antoni"]
[Black "Krishnater Kushager"]
[Result "0-1"]
[ECO "A48"]
[WhiteElo "2236"]
[BlackElo "2334"]
[Annotator "NA"]
[PlyCount "60"]
[EventDate "2018.12.27"]
[EventType "swiss"]
[EventCountry "POL"]
[SourceTitle "playchess.com"]
[Source "ChessBase"]
[SourceQuality "1"]
[TimeControl "40/5400+30:1800+30"]

1. d4 {[%emt 0:00:00]} Nf6 {[%emt 0:00:00]} 2. Nf3 {[%emt 0:00:00]} g6 {[%emt 0:00:00]} 3. c4 {[%emt 0:00:00]} Bg7 {[%emt 0:00:00]} 4. e3 {[%emt 0:00:00]} O-O {[%emt 0:01:31]} 5. Be2 {[%emt 0:00:00]} c5 {[%emt 0:00:56]} 6. d5 {[%emt 0:00:00]} d6 {[%emt 0:02:54]} 7. Nc3 {[%emt 0:00:07]} e6 {[%emt 0:00:53]} 8. O-O {[%emt 0:00:09]} exd5 {[%emt 0:00:25]} 9. cxd5 {[%emt 0:00:06]} Bg4 {[%emt 0:05:28]} 10. h3 {[%emt 0:14:39]} Bxf3 {[%emt 0:00:06]} 11. Bxf3 {[%emt 0:00:07]} Nbd7 {[%emt 0:03:09]} 12. Be2 {[%emt 0:04:02]} a6 {[%emt 0:01:38]} 13. a4 {[%emt 0:00:06]} Qe7 {[%emt 0:04:22]} 14. Re1 {[%emt 0:04:12]} Ne4 {[%emt 0:02:17]} 15. Bd2 {[%emt 0:12:32]} Nxd2 {[%emt 0:06:37]} 16. Qxd2 {[%emt 0:00:48]} f5 {[%emt 0:00:03]} 17. Bf1 {[%emt 0:05:59]} Qf7 {[%emt 0:22:10]} 18. Ne2 {[%emt 0:03:08]} g5 {[%emt 0:02:18]} 19. Ng3 {[%emt 0:05:49]} Kh8 {[%emt 0:00:47]} 20. Bd3 {[%emt 0:13:48]} f4 {[%emt 0:01:26]} 21. exf4 {[%emt 0:00:55]} gxf4 {[%emt 0:00:10]} 22. Nf5 {[%emt 0:00:13]} Be5 {[%emt 0:00:34]} 23. Bc2 {[%emt 0:01:28]} Qh5 {[%emt 0:04:19]} 24. Rxe5 {[%emt 0:12:56]} dxe5 {[%emt 0:00:35]} 25. Nd6 {[%emt 0:00:55]} f3 {[%emt 0:05:44]} 26. Ne4 {[%emt 0:00:36]} fxg2 {[%emt 0:01:13]} 27. Kxg2 {[%emt 0:00:08]} Qf3+ {[%emt 0:02:37]} 28. Kh2 {[%emt 0:00:03]} Rg8 {[%emt 0:00:07]} 29. Ng5 {[%emt 0:02:07]} Rxg5 {[%emt 0:00:07]} 30. Qxg5 {[%emt 0:00:02]} Rg8 {[%emt 0:00:04]} 0-1

[Event "XXIX Cracovia 2018"]
[Site "Krakow"]
[Date "2019.01.02"]
[Round "7"]
[White "Ustinov, Alexey"]
[Black "Nowicki, Bartosz"]
[Result "0-1"]
[ECO "A64"]
[WhiteElo "2232"]
[BlackElo "2305"]
[Annotator "NA"]
[PlyCount "98"]
[EventDate "2018.12.27"]
[EventType "swiss"]
[EventCountry "POL"]
[SourceTitle "playchess.com"]
[Source "ChessBase"]
[SourceQuality "1"]
[TimeControl "40/5400+30:1800+30"]

1. c4 {[%emt 0:00:00]} Nf6 {[%emt 0:00:00]} 2. Nc3 {[%emt 0:00:00]} g6 {[%emt 0:00:00]} 3. d4 {[%emt 0:00:00]} c5 {[%emt 0:00:00]} 4. d5 {[%emt 0:00:42]} Bg7 {[%emt 0:00:00]} 5. g3 {[%emt 0:02:39]} O-O {[%emt 0:00:02]} 6. Bg2 {[%emt 0:00:03]} d6 {[%emt 0:00:14]} 7. Nf3 {[%emt 0:00:47]} e6 {[%emt 0:00:32]} 8. O-O {[%emt 0:00:12]} exd5 {[%emt 0:00:25]} 9. cxd5 {[%emt 0:00:05]} a6 {[%emt 0:00:42]} 10. a4 {[%emt 0:00:05]} Re8 {[%emt 0:00:32]} 11. Nd2 {[%emt 0:01:19]} Nbd7 {[%emt 0:00:57]} 12. Nc4 {[%emt 0:01:02]} Ne5 {[%emt 0:00:35]} 13. Na3 {[%emt 0:05:27]} Rb8 {[%emt 0:01:09]} 14. h3 {[%emt 0:02:05]} Nh5 {[%emt 0:03:57]} 15. e4 {[%emt 0:11:09]} Bd7 {[%emt 0:04:18]} 16. a5 {[%emt 0:28:21]} Qxa5 {[%emt 0:14:26]} 17. g4 {[%emt 0:00:31]} Nf6 {[%emt 0:00:26]} 18. g5 {[%emt 0:09:34]} Nh5 {[%emt 0:01:17]} 19. f4 {[%emt 0:00:19]} Nc4 {[%emt 0:05:49]} 20. Nxc4 {[%emt 0:00:07]} Qxa1 {[%emt 0:00:00]} 21. Nxd6 {[%emt 0:08:02]} Bxc3 {[%emt 0:08:48]} 22. bxc3 {[%emt 0:00:28]} Qxc3 {[%emt 0:02:00]} 23. Nxe8 {[%emt 0:00:52]} Rxe8 {[%emt 0:00:24]} 24. Rf3 {[%emt 0:06:59]} Qc4 {[%emt 0:00:48]} 25. e5 {[%emt 0:01:50]} Rd8 {[%emt 0:08:59]} 26. d6 {[%emt 0:08:22]} Bc6 {[%emt 0:00:39]} 27. Rf2 {[%emt 0:00:26]} Bxg2 {[%emt 0:00:27]} 28. Kxg2 {[%emt 0:00:07]} b5 {[%emt 0:04:56]} 29. Be3 {[%emt 0:05:10]} Ng7 {[%emt 0:01:09]} 30. Qc2 {[%emt 0:04:40]} Qd5+ {[%emt 0:02:17]} 31. Kh2 {[%emt 0:00:12]} Ne6 {[%emt 0:01:37]} 32. Kg3 {[%emt 0:01:14]} c4 {[%emt 0:06:13]} 33. Rd2 {[%emt 0:00:27]} Qc6 {[%emt 0:02:37]} 34. f5 {[%emt 0:00:17]} Ng7 {[%emt 0:00:57]} 35. fxg6 {[%emt 0:00:53]} hxg6 {[%emt 0:00:05]} 36. Rf2 {[%emt 0:00:21]} Qd5 {[%emt 0:05:09]} 37. Qc3 {[%emt 0:02:07]} Nf5+ {[%emt 0:00:39]} 38. Kf4 {[%emt 0:00:23]} Ng7 {[%emt 0:06:24]} 39. Bb6 {[%emt 0:01:27]} Nh5+ {[%emt 0:01:21]} 40. Ke3 {[%emt 0:00:00]} Rd7 {[%emt 0:00:00]} 41. Qd4 {[%emt 0:04:06]} Qe6 {[%emt 0:07:38]} 42. Rf3 {[%emt 0:02:53]} Ng7 {[%emt 0:00:16]} 43. Kf2 {[%emt 0:02:50]} Nf5 {[%emt 0:00:50]} 44. Qc5 {[%emt 0:00:36]} b4 {[%emt 0:11:33]} 45. Rf4 {[%emt 0:10:25]} b3 {[%emt 0:02:02]} 46. Qc8+ {[%emt 0:07:08]} Kh7 {[%emt 0:01:01]} 47. Rxc4 {[%emt 0:00:17]} b2 {[%emt 0:00:39]} 48. Rb4 {[%emt 0:00:12]} Qa2 {[%emt 0:00:37]} 49. Kf3 {[%emt 0:00:12]} Qa3+ {[%emt 0:00:14]} 0-1

[Event "XXIX Cracovia 2018"]
[Site "Krakow"]
[Date "2019.01.02"]
[Round "7"]
[White "Adamczewski, Maciej"]
[Black "Kvaratskhelia, Dimitri"]
[Result "1/2-1/2"]
[ECO "A41"]
[WhiteElo "2080"]
[BlackElo "1996"]
[Annotator "NA"]
[PlyCount "123"]
[EventDate "2018.12.27"]
[EventType "swiss"]
[EventCountry "POL"]
[SourceTitle "playchess.com"]
[Source "ChessBase"]
[SourceQuality "1"]
[TimeControl "40/5400+30:1800+30"]

1. d4 {[%emt 0:00:00]} d6 {[%emt 0:00:00]} 2. Nf3 {[%emt 0:01:40]} g6 {[%emt 0:00:10]} 3. c4 {[%emt 0:00:08]} Bg7 {[%emt 0:00:06]} 4. Nc3 {[%emt 0:01:27]} c6 {[%emt 0:01:48]} 5. h3 {[%emt 0:00:27]} e5 {[%emt 0:00:52]} 6. Bg5 {[%emt 0:09:15]} f6 {[%emt 0:06:34]} 7. Be3 {[%emt 0:00:35]} Ne7 {[%emt 0:08:12]} 8. dxe5 {[%emt 0:00:22]} dxe5 {[%emt 0:00:43]} 9. Qxd8+ {[%emt 0:02:37]} Kxd8 {[%emt 0:01:44]} 10. O-O-O+ {[%emt 0:00:07]} Nd7 {[%emt 0:01:33]} 11. Bc5 {[%emt 0:04:57]} Ke8 {[%emt 0:06:06]} 12. Ba3 {[%emt 0:03:21]} f5 {[%emt 0:02:20]} 13. e3 {[%emt 0:11:05]} Bf6 {[%emt 0:04:40]} 14. Bd6 {[%emt 0:04:44]} b6 {[%emt 0:01:52]} 15. Be2 {[%emt 0:01:40]} a6 {[%emt 0:10:23]} 16. Rd2 {[%emt 0:06:29]} e4 {[%emt 0:10:02]} 17. Nd4 {[%emt 0:00:51]} Ne5 {[%emt 0:02:06]} 18. Na4 {[%emt 0:06:33]} Nd7 {[%emt 0:18:53]} 19. Rhd1 {[%emt 0:04:11]} c5 {[%emt 0:04:48]} 20. Ne6 {[%emt 0:01:23]} Ra7 {[%emt 0:00:44]} 21. g4 {[%emt 0:08:04]} Kf7 {[%emt 0:01:49]} 22. Nc7 {[%emt 0:01:32]} fxg4 {[%emt 0:06:46]} 23. Bxg4 {[%emt 0:17:45]} Ne5 {[%emt 0:00:10]} 24. Bxc8 {[%emt 0:00:45]} Rxc8 {[%emt 0:01:17]} 25. Bxe5 {[%emt 0:01:57]} Bxe5 {[%emt 0:00:01]} 26. Nd5 {[%emt 0:00:12]} b5 {[%emt 0:04:05]} 27. Nac3 {[%emt 0:03:02]} Nxd5 {[%emt 0:00:36]} 28. Rxd5 {[%emt 0:00:41]} Bxc3 {[%emt 0:00:24]} 29. bxc3 {[%emt 0:00:03]} bxc4 {[%emt 0:02:44]} 30. Re5 {[%emt 0:02:00]} Re7 {[%emt 0:00:42]} 31. Rdd5 {[%emt 0:00:10]} Rb7 {[%emt 0:01:26]} 32. Rxe4 {[%emt 0:01:38]} Rcb8 {[%emt 0:00:06]} 33. Kd1 {[%emt 0:00:52]} Rb1+ {[%emt 0:01:05]} 34. Ke2 {[%emt 0:00:05]} R8b2+ {[%emt 0:00:03]} 35. Kf3 {[%emt 0:00:02]} Rf1 {[%emt 0:01:22]} 36. Rd7+ {[%emt 0:02:50]} Kf6 {[%emt 0:00:04]} 37. Rd6+ {[%emt 0:00:52]} Kf5 {[%emt 0:00:52]} 38. Rd5+ {[%emt 0:00:08]} Kf6 {[%emt 0:00:05]} 39. Rf4+ {[%emt 0:01:40]} Ke6 {[%emt 0:00:07]} 40. Ke4 {[%emt 0:00:00]} Rbxf2 {[%emt 0:00:00]} 41. Rxf2 {[%emt 0:00:32]} Rxf2 {[%emt 0:01:51]} 42. Rxc5 {[%emt 0:00:02]} Rxa2 {[%emt 0:00:32]} 43. Rxc4 {[%emt 0:00:11]} Kd6 {[%emt 0:02:22]} 44. Kd3 {[%emt 0:05:45]} a5 {[%emt 0:02:33]} 45. Rc8 {[%emt 0:04:22]} Rh2 {[%emt 0:03:24]} 46. Ra8 {[%emt 0:06:44]} Rxh3 {[%emt 0:00:30]} 47. Rxa5 {[%emt 0:00:03]} Rg3 {[%emt 0:00:26]} 48. Kd4 {[%emt 0:00:23]} h5 {[%emt 0:01:34]} 49. c4 {[%emt 0:00:57]} h4 {[%emt 0:00:44]} 50. c5+ {[%emt 0:00:06]} Kc6 {[%emt 0:00:31]} 51. Ra6+ {[%emt 0:00:15]} Kb7 {[%emt 0:00:05]} 52. Ra1 {[%emt 0:01:33]} h3 {[%emt 0:00:34]} 53. e4 {[%emt 0:00:42]} g5 {[%emt 0:12:38]} 54. e5 {[%emt 0:00:56]} Rg2 {[%emt 0:03:39]} 55. e6 {[%emt 0:01:39]} Re2 {[%emt 0:00:58]} 56. Kd5 {[%emt 0:01:54]} h2 {[%emt 0:02:17]} 57. c6+ {[%emt 0:05:47]} Kb8 {[%emt 0:00:05]} 58. Kd6 {[%emt 0:01:05]} Rd2+ {[%emt 0:00:25]} 59. Ke5 {[%emt 0:00:10]} Kc7 {[%emt 0:01:32]} 60. e7 {[%emt 0:02:15]} Re2+ {[%emt 0:00:38]} 61. Kf5 {[%emt 0:01:15]} Rxe7 {[%emt 0:00:39]} 62. Rh1 {[%emt 0:00:19]} 1/2-1/2

[Event "XXIX Cracovia 2018"]
[Site "Krakow"]
[Date "2019.01.02"]
[Round "7"]
[White "Andronescu, Madalin"]
[Black "Warchol, Bartosz"]
[Result "1/2-1/2"]
[ECO "B94"]
[WhiteElo "2070"]
[BlackElo "1975"]
[Annotator "NA"]
[PlyCount "70"]
[EventDate "2018.12.27"]
[EventType "swiss"]
[EventCountry "POL"]
[SourceTitle "playchess.com"]
[Source "ChessBase"]
[SourceQuality "1"]
[TimeControl "40/5400+30:1800+30"]

1. e4 c5 2. Nf3 d6 3. d4 cxd4 4. Nxd4 Nf6 5. Nc3 a6 6. Bg5 Nbd7 7. Qe2 h6 8. Bh4 g6 9. O-O-O e5 10. Nb3 Qc7 11. g4 b5 12. Bg2 Bb7 13. f4 Be7 14. Rhf1 b4 15. Bxf6 Nxf6 16. Nd5 Nxd5 17. exd5 Bf6 18. h4 O-O-O 19. fxe5 Bxe5 20. Nd4 Rhe8 21. Qf3 Re7 22. Qb3 Qc5 23. Nc6 Bxc6 24. dxc6 Rf8 25. Rd5 Qb6 26. a3 a5 27. Qa4 bxa3 28. Qxa3 Kc7 29. Rxa5 Rb8 30. b3 Qe3+ 31. Kb1 Qd4 32. Ra4 Qc3 33. Ra7+ Kd8 34. Rxe7 Rxb3+ 35. cxb3 Qd3+ 1/2-1/2

[Event "XXIX Cracovia 2018"]
[Site "Krakow"]
[Date "2019.01.02"]
[Round "7"]
[White "Jankowiak, Tomasz"]
[Black "Brylski, Pawel"]
[Result "1-0"]
[ECO "C89"]
[WhiteElo "2070"]
[BlackElo "1975"]
[Annotator "NA"]
[PlyCount "83"]
[EventDate "2018.12.27"]
[EventType "swiss"]
[EventCountry "POL"]
[SourceTitle "playchess.com"]
[Source "ChessBase"]
[SourceQuality "1"]
[TimeControl "40/5400+30:1800+30"]

1. e4 e5 2. Nf3 Nc6 3. Bb5 a6 4. Ba4 Nf6 5. O-O Be7 6. Re1 b5 7. Bb3 O-O 8. c3 d5 9. exd5 Nxd5 10. Nxe5 Nxe5 11. Rxe5 c6 12. d3 Bd6 13. Re1 Qh4 14. g3 Qh3 15. Re4 Qf5 16. Bc2 Nf6 17. Bf4 Rd8 18. Rd4 Nd5 19. Bxd6 Rxd6 20. Rh4 Rf6 21. Qe2 Re6 22. Re4 Qh3 23. Nd2 Nf6 24. Rxe6 Bxe6 25. Ne4 Ng4 26. f3 Ne5 27. Ng5 Qf5 28. f4 Ng6 29. d4 Qg4 30. Qxg4 Bxg4 31. Re1 h6 32. Ne4 Be6 33. Nc5 Bd5 34. Bb3 Bxb3 35. axb3 a5 36. f5 Nf8 37. Re7 a4 38. bxa4 bxa4 39. Rc7 a3 40. bxa3 Rxa3 41. Rc8 Ra7 42. Rxc6 1-0